fUST/lending_fUST_20240306
["ID","MTS","AMOUNT","RATE_DAILY","PERIOD"]
[317133450,1709689846199,-500.0,0.00023287,2]
[317133452,1709689846209,-3567.44487018,0.00023287,2]
[317133453,1709689846219,-500.0,0.00023287,2]
[317133455,1709689846228,-500.0,0.00023287,2]
[317133457,1709689846237,-500.0,0.00023287,2]
[317133459,1709689846246,-500.0,0.00023287,2]
[317133461,1709689846258,-2826.29,0.00023287,2]
[317133463,1709689846267,-500.64027514,0.00023287,2]
[317133465,1709689846275,-500.0,0.00023287,2]
[317133467,1709689846284,-2826.29,0.00023287,2]
[317133469,1709689846294,-500.0,0.00023287,2]
[317133471,1709689846303,-2826.29,0.00023287,2]
[317133473,1709689846312,-237.86195126,0.00023287,2]
[317133475,1709689846321,-2826.29,0.00023287,2]
[317133477,1709689846333,-2826.29,0.00023287,2]
[317133479,1709689846342,-2826.29,0.00023287,2]
[317133481,1709689846351,-2826.29,0.00023287,2]
[317133483,1709689846360,-2826.29,0.00023287,2]
[317133485,1709689846369,-2826.29,0.00023287,2]
[317133487,1709689846378,-2826.29,0.00023287,2]
[317133489,1709689846387,-2826.29,0.00023287,2]
[317133491,1709689846397,-2826.29,0.00023287,2]
[317133493,1709689846406,-2826.29,0.00023287,2]
[317133495,1709689846415,-2826.29,0.00023287,2]
[317133497,1709689846424,-2826.29,0.00023287,2]
[317133499,1709689846433,-500.0,0.00023287,2]
[317133501,1709689846442,-500.0,0.00023287,2]
[317133503,1709689846451,-642.16,0.00023287,2]
[317133505,1709689846460,-642.16,0.00023287,2]
[317133507,1709689846469,-500.0,0.00023287,2]
[317133509,1709689846478,-642.16,0.00023287,2]
[317133511,1709689846487,-500.0,0.00023287,2]
[317133513,1709689846497,-642.16,0.00023287,2]
[317133515,1709689846507,-500.0,0.00023287,2]
[317133517,1709689846516,-500.0,0.00023287,2]
[317133519,1709689846524,-642.16,0.00023287,2]
[317133521,1709689846534,-642.16,0.00023287,2]
[317133523,1709689846543,-500.0,0.00023287,2]
[317133525,1709689846552,-642.16,0.00023287,2]
[317133527,1709689846562,-217.55693934,0.00023287,2]
[317133529,1709689846571,-642.16,0.00023287,2]
[317133531,1709689846581,-642.16,0.00023287,2]
[317133533,1709689846589,-642.16,0.00023287,2]
[317133534,1709689846598,-642.16,0.00023287,2]
[317133536,1709689846608,-642.16,0.00023287,2]
[317133538,1709689846617,-642.16,0.00023287,2]
[317133540,1709689846626,-642.16,0.00023287,2]
[317133542,1709689846636,-642.16,0.00023287,2]
[317133544,1709689846645,-642.16,0.00023287,2]
[317133546,1709689846655,-642.16,0.00023287,2]
[317133548,1709689846664,-500.0,0.00023287,2]
[317133551,1709689846684,-642.16,0.00023287,2]
[317133553,1709689846694,-500.0,0.00023287,2]
[317133555,1709689846703,-642.16,0.00023287,2]
[317133557,1709689846712,-642.16,0.00023287,2]
[317133559,1709689846721,-500.0,0.00023287,2]
[317133561,1709689846731,-500.0,0.00023287,2]
[317133563,1709689846740,-642.16,0.00023287,2]
[317133565,1709689846750,-500.0,0.00023287,2]
[317133567,1709689846761,-500.0,0.00023287,2]
[317133569,1709689846771,-642.16,0.00023287,2]
[317133571,1709689846781,-500.0,0.00023287,2]
[317133573,1709689846790,-642.16,0.00023287,2]
[317133575,1709689846799,-649.17751839,0.00023287,2]
[317133577,1709689846809,-500.0,0.00023287,2]
[317133579,1709689846818,-642.22237019,0.00023287,2]
[317133581,1709689846827,-500.0,0.00023287,2]
[317133583,1709689846837,-500.0,0.00023287,2]
[317133585,1709689846846,-500.0,0.00023287,2]
[317133587,1709689846855,-500.0,0.00023287,2]
[317133589,1709689846864,-500.0,0.00023287,2]
[317133591,1709689846873,-500.0,0.00023287,2]
[317133593,1709689846883,-500.0,0.00023287,2]
[317133595,1709689846892,-500.0,0.00023287,2]
[317133597,1709689846901,-500.0,0.00023287,2]
[317133599,1709689846910,-254.63508743,0.00023287,2]
[317133601,1709689846919,-502.81976014,0.00023287,2]
[317133603,1709689846929,-500.0,0.00023287,2]
[317133605,1709689846938,-500.0,0.00023287,2]
[317133607,1709689846947,-500.0,0.00023287,2]
[317133609,1709689846956,-500.0,0.00023287,2]
[317133611,1709689846966,-501.84882432,0.00023287,2]
[317133613,1709689846975,-502.33987417,0.00023287,2]
[317133614,1709689846984,-500.0,0.00023287,2]
[317133616,1709689846993,-500.0,0.00023287,2]
[317133627,1709689847109,-500.0,0.00023287,2]
[317133628,1709689847120,-500.0,0.00023287,2]
[317133629,1709689847130,-500.0,0.00023287,2]
[317133630,1709689847139,-500.0,0.00023287,2]
[317133631,1709689847148,-500.0,0.00023287,2]
[317133632,1709689847157,-500.0,0.00023287,2]
[317133633,1709689847166,-500.0,0.00023287,2]
[317133634,1709689847175,-439.95059916,0.00023287,2]
[317133635,1709689847184,-501.38656282,0.00023287,2]
[317133636,1709689847193,-500.76704507,0.00023287,2]
[317133637,1709689847203,-590.15513485,0.00023287,2]
[317133638,1709689847212,-500.0,0.00023287,2]
[317133639,1709689847221,-500.0,0.00023287,2]
[317133640,1709689847231,-500.0,0.00023287,2]
[317133641,1709689847240,-500.0,0.00023287,2]
[317133642,1709689847250,-500.0,0.00023287,2]
[317133643,1709689847260,-502.57084846,0.00023287,2]
[317133644,1709689847269,-503.77099098,0.00023287,2]
[317133646,1709689847278,-1743.35,0.00023287,2]
[317133648,1709689847287,-1743.35,0.00023287,2]
[317133650,1709689847297,-1743.35,0.00023287,2]
[317133652,1709689847306,-1743.35,0.00023287,2]
[317133654,1709689847315,-1743.35,0.00023287,2]
[317133656,1709689847324,-1743.35,0.00023287,2]
[317133658,1709689847333,-500.0,0.00023287,2]
[317133660,1709689847342,-1743.35,0.00023287,2]
[317133662,1709689847350,-503.53096328,0.00023287,2]
[317133664,1709689847359,-1743.35,0.00023287,2]
[317133665,1709689847368,-1743.35,0.00023287,2]
[317133667,1709689847377,-1743.35,0.00023287,2]
[317133669,1709689847386,-1743.35,0.00023287,2]
[317133671,1709689847395,-1743.35,0.00023287,2]
[317133673,1709689847404,-1743.35,0.00023287,2]
[317133675,1709689847413,-1743.35,0.00023287,2]
[317133677,1709689847422,-1743.35,0.00023287,2]
[317133679,1709689847431,-501.44898083,0.00023287,2]
[317133681,1709689847440,-502.43465029,0.00023287,2]
[317133683,1709689847449,-500.0,0.00023287,2]
[317133685,1709689847459,-517.57036996,0.00023287,2]
[317133687,1709689847467,-501.14148098,0.00023287,2]
[317133689,1709689847476,-500.0,0.00023287,2]
[317133691,1709689847485,-504.13295075,0.00023287,2]
[317133693,1709689847495,-500.0,0.00023287,2]
[317133695,1709689847503,-500.0,0.00023287,2]
[317133697,1709689847514,-500.0,0.00023287,2]
[317133699,1709689847523,-500.0,0.00023287,2]
[317133701,1709689847532,-500.0,0.00023287,2]
[317133703,1709689847541,-500.0,0.00023287,2]
[317133705,1709689847550,-500.0,0.00023287,2]
[317133707,1709689847559,-500.0,0.00023287,2]
[317133709,1709689847568,-548.43168728,0.00023287,2]
[317133711,1709689847577,-9788.87,0.00023287,2]
[317133713,1709689847586,-9788.87,0.00023287,2]
[317133715,1709689847595,-9788.87,0.00023287,2]
[317133717,1709689847603,-9788.87,0.00023287,2]
[317133719,1709689847612,-9788.87,0.00023287,2]
[317133721,1709689847621,-9788.87,0.00023287,2]
[317133723,1709689847631,-9788.87,0.00023287,2]
[317133725,1709689847640,-9788.87,0.00023287,2]
[317133727,1709689847649,-9788.87,0.00023287,2]
[317133729,1709689847658,-9788.87,0.00023287,2]
[317133731,1709689847667,-9788.87,0.00023287,2]
[317133733,1709689847676,-9788.87,0.00023287,2]
[317133735,1709689847684,-329.21459428,0.00023287,2]
[317133737,1709689847693,-11865.74,0.00023287,2]
[317133739,1709689847702,-11865.74,0.00023287,2]
[317133741,1709689847712,-11865.74,0.00023287,2]
[317133743,1709689847721,-11865.74,0.00023287,2]
[317133745,1709689847731,-11865.74,0.00023287,2]
[317133747,1709689847739,-11865.74,0.00023287,2]
[317133749,1709689847749,-11865.74,0.00023287,2]
[317133751,1709689847758,-11865.74,0.00023287,2]
[317133753,1709689847767,-11865.74,0.00023287,2]
[317133754,1709689847776,-11865.74,0.00023287,2]
[317133756,1709689847784,-11865.74,0.00023287,2]
[317133758,1709689847794,-11865.74,0.00023287,2]
[317133760,1709689847803,-11865.74,0.00023287,2]
[317133762,1709689847811,-11865.74,0.00023287,2]
[317133764,1709689847820,-11865.74,0.00023287,2]
[317133766,1709689847829,-501.02342556,0.00023287,2]
[317133768,1709689847838,-501.41113792,0.00023287,2]
[317133770,1709689847848,-511.15607031,0.00023287,2]
[317133772,1709689847857,-500.0,0.00023287,2]
[317133774,1709689847869,-208.73764505,0.00023287,2]
[317133776,1709689847878,-500.0,0.00023287,2]
[317133778,1709689847887,-500.0,0.00023287,2]
[317133780,1709689847896,-500.0,0.00023287,2]
[317133782,1709689847904,-516.06945812,0.00023287,2]
[317133784,1709689847913,-358.88533961,0.00023287,2]
[317133786,1709689847922,-500.0,0.00023287,2]
[317133788,1709689847932,-500.0,0.00023287,2]
[317133790,1709689847941,-500.0,0.00023287,2]
[317133792,1709689847950,-181.58627664,0.00023287,2]
[317133794,1709689847959,-504.80569967,0.00023287,2]
[317133796,1709689847969,-373.57095569,0.00023287,2]
[317133798,1709689847978,-500.0,0.00023287,2]
[317133800,1709689847987,-500.0,0.00023287,2]
[317133802,1709689847996,-364.20386998,0.00023287,2]
[317133804,1709689848005,-500.0,0.00023287,2]
[317133806,1709689848017,-500.0,0.00023287,2]
[317133807,1709689848026,-500.0,0.00023287,2]
[317133809,1709689848036,-500.0,0.00023287,2]
[317133811,1709689848048,-509.39138296,0.00023287,2]
[317133813,1709689848057,-503.23026719,0.00023287,2]
[317133815,1709689848067,-500.46159037,0.00023287,2]
[317133817,1709689848077,-3113.35071187,0.00023336,2]
[317133819,1709689848087,-306.39668819,0.00023336,2]
[317133821,1709689848096,-696.39699136,0.0002334,2]
[317133823,1709689848106,-3113.35071187,0.00023454,2]
[317133825,1709689848115,-306.39668819,0.00023454,2]
[317133827,1709689848126,-500.0,0.00023489,2]
[317133829,1709689848136,-500.0,0.00023489,2]
[317133831,1709689848145,-2826.29,0.00023489,2]
[317133833,1709689848154,-1743.35,0.00023489,2]
[317133835,1709689848163,-9788.87,0.00023489,2]
[317133837,1709689848172,-11865.74,0.00023489,2]
[317133839,1709689848182,-500.0,0.0002349,2]
[317133841,1709689848191,-500.0,0.0002349,2]
[317133843,1709689848200,-508.42238472,0.0002349,2]
[317133845,1709689848209,-666.73,0.0002349,2]
[317133846,1709689848219,-500.0,0.0002349,2]
[317133848,1709689848228,-500.0,0.0002349,2]
[317133850,1709689848238,-1245.44,0.0002349,2]
[317133852,1709689848247,-1340.93,0.0002349,2]
[317133854,1709689848259,-500.0,0.0002349,2]
[317133856,1709689848268,-789.19,0.0002349,2]
[317133858,1709689848277,-500.0,0.0002349,2]
[317133860,1709689848287,-500.0,0.0002349,2]
[317133862,1709689848297,-859.57,0.0002349,2]
[317133864,1709689848306,-500.0,0.0002349,2]
[317133866,1709689848315,-500.0,0.0002349,2]
[317133868,1709689848324,-2826.29,0.0002349,2]
[317133870,1709689848333,-1743.35,0.0002349,2]
[317133872,1709689848342,-9788.87,0.0002349,2]
[317133874,1709689848351,-11865.74,0.0002349,2]
[317133876,1709689848360,-500.0,0.00023491,2]
[317133878,1709689848369,-500.0,0.00023491,2]
[317133880,1709689848378,-501.96552138,0.00023491,2]
[317133882,1709689848387,-696.39699136,0.00023493,2]
[317133884,1709689848396,-3113.35,0.00023572,2]
[317133886,1709689848406,-194.58,0.00023572,2]
[317133888,1709689848414,-306.39,0.00023572,2]
[317133890,1709689848424,-325.89551964,0.00023583,2]
[317133892,1709689848433,-500.0,0.00023633,2]
[317133894,1709689848442,-500.0,0.00023633,2]
[317133896,1709689848451,-2826.29,0.00023633,2]
[317133898,1709689848461,-1743.35,0.00023633,2]
[317133900,1709689848470,-221.037223,0.00023633,2]
[317133902,1709689848479,-11865.74,0.00023633,2]
[317133904,1709689848488,-12500.0,0.00023634,2]
[317133906,1709689848497,-7754.63,0.00023634,2]
[317133908,1709689848505,-165.020468,0.00023635,2]
[317133910,1709689848516,-151.0,0.00023635,2]
[317133912,1709689848525,-165.020468,0.00023635,2]
[317133914,1709689848534,-157.511348,0.00023635,2]
[317133915,1709689848544,-12500.0,0.00023635,2]
[317133917,1709689848552,-12500.0,0.00023636,2]
[317133919,1709689848562,-12500.0,0.00023637,2]
[317133921,1709689848571,-696.39699136,0.00023646,2]
[317133923,1709689848580,-12500.0,0.00023652,2]
[317133925,1709689848589,-500.0,0.00023654,2]
[317133927,1709689848598,-500.0,0.00023654,2]
[317133929,1709689848608,-2826.29,0.00023654,2]
[317133931,1709689848618,-1743.35,0.00023654,2]
[317133933,1709689848627,-11865.74,0.00023654,2]
[317133935,1709689848636,-12500.0,0.00023655,2]
[317133937,1709689848645,-325.89551964,0.00023662,2]
[317133939,1709689848654,-12500.0,0.00023663,2]
[317133941,1709689848663,-12500.0,0.0002367,2]
[317133943,1709689848673,-500.0,0.00023672,2]
[317133945,1709689848682,-500.0,0.00023672,2]
[317133947,1709689848691,-248.65582411,0.00023672,2]
[317133949,1709689848700,-500.0,0.00023672,2]
[317133951,1709689848708,-500.0,0.00023672,2]
[317133953,1709689848717,-566.88930407,0.00023672,2]
[317133955,1709689848726,-2826.29,0.00023672,2]
[317133957,1709689848736,-2826.29,0.00023672,2]
[317133959,1709689848745,-2826.29,0.00023672,2]
[317133961,1709689848753,-2826.29,0.00023672,2]
[317133963,1709689848765,-2826.51002447,0.00023672,2]
[317133965,1709689848773,-1743.35,0.00023672,2]
[317133967,1709689848782,-1743.35,0.00023672,2]
[317133969,1709689848792,-1743.35,0.00023672,2]
[317133971,1709689848800,-1743.35,0.00023672,2]
[317133973,1709689848809,-1743.51028347,0.00023672,2]
[317133975,1709689848818,-11865.74,0.00023672,2]
[317133977,1709689848827,-11865.74,0.00023672,2]
[317133986,1709689848903,-11865.74,0.00023672,2]
[317133988,1709689848913,-11865.74,0.00023672,2]
[317133990,1709689848922,-11865.95777576,0.00023672,2]
[317133993,1709689848931,-12500.0,0.00023673,2]
[317133994,1709689848940,-12500.0,0.00023676,2]
[317133996,1709689848950,-12500.0,0.00023676,2]
[317133998,1709689848959,-9197.85,0.0002368,2]
[317134000,1709689848968,-9788.87,0.0002369,2]
[317134002,1709689848977,-666.73,0.00023691,2]
[317134004,1709689848986,-517.3690579,0.00023691,2]
[317134007,1709689848995,-500.0,0.00023691,2]
[317134008,1709689849004,-1245.44,0.00023691,2]
[317134010,1709689849016,-1340.93,0.00023691,2]
[317134012,1709689849030,-500.0,0.00023691,2]
[317134014,1709689849039,-789.19,0.00023691,2]
[317134016,1709689849048,-500.0,0.00023691,2]
[317134019,1709689849057,-500.0,0.00023691,2]
[317134021,1709689849071,-859.57,0.00023691,2]
[317134022,1709689849081,-9788.87,0.00023703,2]
[317134024,1709689849090,-9788.87,0.00023714,2]
[317134027,1709689849101,-666.73,0.00023715,2]
[317134028,1709689849110,-500.0,0.00023715,2]
[317134030,1709689849119,-1245.44,0.00023715,2]
[317134032,1709689849128,-1340.93,0.00023715,2]
[317134034,1709689849138,-500.0,0.00023715,2]
[317134036,1709689849147,-789.19,0.00023715,2]
[317134038,1709689849156,-500.0,0.00023715,2]
[317134040,1709689849166,-500.0,0.00023715,2]
[317134043,1709689849176,-859.57,0.00023715,2]
[317134045,1709689849185,-9788.87,0.00023718,2]
[317134047,1709689849195,-666.73,0.00023723,2]
[317134049,1709689849204,-500.0,0.00023723,2]
[317134051,1709689849213,-1245.44,0.00023723,2]
[317134053,1709689849222,-1340.93,0.00023723,2]
[317134055,1709689849230,-451.04498116,0.00023723,2]
[317134056,1709689849239,-789.19,0.00023723,2]
[317134058,1709689849249,-500.0,0.00023723,2]
[317134060,1709689849258,-500.0,0.00023723,2]
[317134062,1709689849268,-859.57,0.00023723,2]
[317134064,1709689849277,-9788.87,0.00023723,2]
[317134066,1709689849286,-165.020468,0.00023723,2]
[317134068,1709689849295,-278.735802,0.00023723,2]
[317134070,1709689849304,-165.020468,0.00023723,2]
[317134072,1709689849313,-157.511348,0.00023723,2]
[317134074,1709689849322,-9788.87,0.00023729,2]
[317134076,1709689849331,-9788.87,0.00023729,2]
[317134078,1709689849340,-9788.87,0.00023729,2]
[317134080,1709689849349,-9788.87,0.00023729,2]
[317134082,1709689849358,-9788.96970752,0.00023729,2]
[317134084,1709689849368,-666.73,0.0002373,2]
[317134086,1709689849377,-500.0,0.0002373,2]
[317134088,1709689849386,-1245.44,0.0002373,2]
[317134089,1709689849395,-1340.93,0.0002373,2]
[317134090,1709689849403,-789.19,0.0002373,2]
[317134091,1709689849412,-500.0,0.0002373,2]
[317134092,1709689849421,-500.0,0.0002373,2]
[317134093,1709689849430,-859.57,0.0002373,2]
[317134094,1709689849439,-325.89551964,0.00023742,2]
[317134095,1709689849447,-170.77401617,0.00023759,2]
[317134096,1709689849456,-696.39699136,0.00023799,2]
[317134097,1709689849465,-2651.8005045,0.000238,2]
[317134098,1709689849474,-2198.07105057,0.000238,2]
[317134099,1709689849483,-7977.72299142,0.000238,7]
[317134100,1709689849492,-325.89551964,0.00023821,2]
[317134101,1709689849501,-666.73,0.00023888,2]
[317134102,1709689849510,-500.0,0.00023888,2]
[317134103,1709689849518,-1245.44,0.00023888,2]
[317134104,1709689849527,-1340.93,0.00023888,2]
[317134105,1709689849537,-789.19,0.00023888,2]
[317134106,1709689849546,-500.0,0.00023888,2]
[317134107,1709689849555,-500.0,0.00023888,2]
[317134108,1709689849564,-859.57,0.00023888,2]
[317134109,1709689849573,-8239.79880319,0.0002389,2]
[317134110,1709689849582,-1178.97657791,0.000239,2]
[317134111,1709689849590,-325.89551964,0.000239,2]
[317134112,1709689849599,-5452.57162802,0.00023911,2]
[317134113,1709689849608,-666.73,0.00023958,2]
[317134114,1709689849616,-666.73,0.00023958,2]
[317134115,1709689849625,-666.73,0.00023958,2]
[317134116,1709689849633,-666.73,0.00023958,2]
[317134117,1709689849642,-666.77543004,0.00023958,2]
[317134118,1709689849651,-377.09184907,0.00023958,2]
[317134119,1709689849660,-1245.44,0.00023958,2]
[317134120,1709689849669,-1245.44,0.00023958,2]
[317134121,1709689849678,-1245.44,0.00023958,2]
[317134122,1709689849687,-1245.44,0.00023958,2]
[317134123,1709689849697,-1245.61976931,0.00023958,2]
[317134125,1709689849706,-1340.93,0.00023958,2]
[317134127,1709689849715,-1340.93,0.00023958,2]
[317134129,1709689849724,-1340.93,0.00023958,2]
[317134131,1709689849733,-1340.93,0.00023958,2]
[317134133,1709689849742,-1341.12221317,0.00023958,2]
[317134135,1709689849751,-789.19,0.00023958,2]
[317134137,1709689849765,-789.19,0.00023958,2]
[317134139,1709689849775,-789.19,0.00023958,2]
[317134141,1709689849784,-789.19,0.00023958,2]
[317134144,1709689849794,-789.35680195,0.00023958,2]
[317134145,1709689849804,-500.0,0.00023958,2]
[317134147,1709689849813,-198.58417886,0.00023958,2]
[317134149,1709689849822,-500.0,0.00023958,2]
[317134151,1709689849832,-500.0,0.00023958,2]
[317134153,1709689849841,-500.0,0.00023958,2]
[317134155,1709689849850,-323.33705047,0.00023958,2]
[317134157,1709689849859,-859.57,0.00023958,2]
[317134159,1709689849869,-859.57,0.00023958,2]
[317134161,1709689849878,-859.57,0.00023958,2]
[317134163,1709689849887,-859.57,0.00023958,2]
[317134165,1709689849896,-859.63214474,0.00023958,2]
[317134167,1709689849905,-165.020468,0.00023958,2]
[317134169,1709689849914,-165.020468,0.00023958,2]
[317134171,1709689849923,-157.511348,0.00023958,2]
[317134173,1709689849934,-35816.21419214,0.00023968,6]
[317134175,1709689849943,-151.0,0.00023996,2]
[317134177,1709689849952,-385.986545,0.00023996,2]
[317134179,1709689849961,-385.986545,0.00023996,2]
[317134181,1709689849971,-301.213386,0.00023997,2]
[317134183,1709689849980,-151.0,0.00023997,2]
[317134185,1709689849990,-286.160771,0.00023997,2]
[317134187,1709689849999,-286.160771,0.00023997,2]
[317134190,1709689850010,-697.50319911,0.00023998,2]
[317134192,1709689850021,-155.53683823,0.00023998,2]
[317134194,1709689850031,-276.47885052,0.00023998,2]
[317134196,1709689850041,-155.62535559,0.00023998,2]
[317134198,1709689850053,-809.39117823,0.00023998,2]
[317134200,1709689850063,-155.22082475,0.00023998,2]
[317134201,1709689850074,-206.05425932,0.00023998,2]
[317134203,1709689850084,-747.15654553,0.00023998,2]
[317134205,1709689850094,-3141.19599029,0.00023998,2]
[317134207,1709689850104,-858.22940309,0.00023998,2]
[317134209,1709689850114,-295.73599916,0.00023998,2]
[317134211,1709689850124,-527.57858259,0.00023998,2]
[317134213,1709689850135,-155.19530916,0.00023998,2]
[317134216,1709689850146,-254.63667095,0.00023998,2]
[317134217,1709689850155,-237.92826434,0.00023998,2]
[317134219,1709689850165,-416.98032312,0.00023998,2]
[317134222,1709689850175,-155.72532206,0.00023998,2]
[317134223,1709689850185,-9732.99665347,0.00023998,2]
[317134225,1709689850194,-155.13017274,0.00023998,2]
[317134227,1709689850203,-13843.49791894,0.00023998,2]
[317134229,1709689850212,-2113.35902263,0.00023998,2]
[317134231,1709689850222,-430.00272221,0.00023998,2]
[317134233,1709689850232,-1256.03574482,0.00023998,2]
[317134235,1709689850242,-669.93531144,0.00023998,2]
[317134237,1709689850251,-239.36158123,0.00023998,2]
[317134239,1709689850261,-155.76777152,0.00023998,2]
[317134241,1709689850271,-1640.03801341,0.00023998,2]
[317134243,1709689850281,-155.35311571,0.00023998,2]
[317134245,1709689850291,-239.85472817,0.00023998,7]
[317134247,1709689850302,-151.513472,0.00023998,2]
[317134249,1709689850313,-1501.08028,0.00023998,2]
[317134251,1709689850324,-1501.08028,0.00023998,2]
[317134253,1709689850333,-56328.85499558,0.00024,6]
[317134267,1709689850466,680.00042594,0.00018933,2]
[317134298,1709689850771,680.00042594,0.00018744,2]
[317134305,1709689850832,-500.0,0.00023287,2]
[317134307,1709689850843,-500.0,0.00023287,2]
[317134309,1709689850852,-500.0,0.00023287,2]
[317134311,1709689850863,-500.0,0.00023287,2]
[317134313,1709689850873,-500.0,0.00023287,2]
[317134314,1709689850883,-500.0,0.00023287,2]
[317134316,1709689850895,-500.0,0.00023287,2]
[317134318,1709689850907,-500.0,0.00023287,2]
[317134320,1709689850917,-227.88621653,0.00023287,2]
[317134322,1709689850928,-680.00042594,0.00023933,2]
[317134324,1709689850938,-10019.14928111,0.00024,6]
[317134327,1709689850952,-69210.78850671,0.00024,6]
[317138219,1709690063579,308.01685125,0.000176,2]
[317138220,1709690097985,2799.55778726,0.000176,2]
[317138221,1709690111944,1458.56960716,0.000176,2]
[317138222,1709690135952,1458.56960716,0.000176,2]
[317138223,1709690153951,1458.56960716,0.000176,2]
[317138224,1709690175954,1458.56960716,0.000176,2]
[317138225,1709690197992,1458.56960716,0.000176,2]
[317138234,1709690217958,1458.56960716,0.000176,2]
[317138235,1709690231956,1458.56960716,0.000176,2]
[317138236,1709690249955,1458.56960716,0.000176,2]
[317138237,1709690269961,1458.56960716,0.000176,2]
[317138238,1709690283959,1458.56960716,0.000176,2]
[317138239,1709690303240,518.92829758,0.000176,2]
[317138285,1709690945124,-154.9690062,0.00019768,2]
[317138286,1709690945145,-294.64006495,0.00019769,2]
[317138287,1709690945165,-2113.72300496,0.00019769,2]
[317138288,1709690945185,-294.64006495,0.00019773,2]
[317138289,1709690945206,-10420.35296167,0.00020583,2]
[317138293,1709690949108,-154.9690062,0.0001957,2]
[317138294,1709690949131,-14479.64703833,0.00020583,2]
[317138295,1709690949155,-171.05866,0.00020596,2]
[317138296,1709690949175,-156.4596317,0.00020817,2]
[317138297,1709690949196,-20.74566377,0.0002083,2]
[317138333,1709691033864,-156.26832223,0.0002083,2]
[317138334,1709691033873,-166.666666,0.00021553,2]
[317138335,1709691033882,-170.3347904,0.00021829,2]
[317138336,1709691033891,-294.64006495,0.00021897,2]
[317138337,1709691033900,-226.66680864,0.00021898,2]
[317138339,1709691033909,-440.58284995,0.00023069,3]
[317138340,1709691033918,-1000.0,0.00023069,7]
[317138341,1709691033926,-771.14207791,0.00023069,7]
[317138456,1709691039183,-228.85792209,0.00023069,7]
[317138458,1709691039193,-178.23795961,0.00023069,2]
[317138460,1709691039202,-4666.77865577,0.00023125,5]
[317138462,1709691039216,-474.000006,0.00023125,5]
[317138594,1709691040799,-1041.47029231,0.00023125,5]
[317138596,1709691040808,-5000.0,0.00023125,7]
[317138598,1709691040817,-5000.0,0.00023125,7]
[317138600,1709691040826,-24617.92559343,0.00023125,5]
[317138602,1709691040838,-3315.47452844,0.00023125,5]
[317138604,1709691040847,-214.65493165,0.00023125,2]
[317139141,1709691046623,-225.12281718,0.00021025,2]
[317139143,1709691046634,-373.17752491,0.00023125,2]
[317141373,1709692157172,-166.666666,0.00019736,2]
[317141374,1709692157194,-2755.3135485,0.00020229,2]
[317141375,1709692160107,-387.20408935,0.00020229,2]
[317141376,1709692160128,-1487.49591065,0.0002023,2]
[317141377,1709692164157,-393.56849165,0.0002023,2]
[317141378,1709692164178,-238.75085249,0.00020231,2]
[317141379,1709692164198,-1473.39823279,0.00020231,2]
[317141380,1709692164219,-241.6352279,0.00020232,2]
[317141381,1709692164239,-300.0,0.00020303,2]
[317141382,1709692164259,-782.78940278,0.00020305,2]
[317141387,1709692189055,150.08187812,0.000189,2]
[317141439,1709692236040,-112.20246792,0.00020305,2]
[317141440,1709692236049,-1980.54784553,0.00022191,2]
[317141442,1709692236059,-8247.54438755,0.00022192,7]
[317141480,1709692238674,-486.03346757,0.00022192,7]
[317141703,1709692240848,-2999.989965,0.00022192,7]
[317141967,1709692243677,-9421.8,0.00022192,7]
[317141970,1709692243691,-28844.63217988,0.00022192,7]
[317141972,1709692243701,-153.0,0.00023041,2]